Cogmind - Beta 12 @@@ ROGUE MODE // 2023.03.15 @ 21:05:02 Player: Burgers_Lettuce Result: Destroyed by C-17 Slicer with Blade Saw Performance ------------- Evolutions (2) 1000 Regions Visited (5) 1000 Robots Destroyed (14) 70 Value Destroyed (180) 180 Prototype IDs (0) 0 Alien Tech Used (0) 0 Bonus (200) 200 TOTAL SCORE: 2450 Bonus ------- Entered Garrisons 200 Cogmind --------- Core Integrity 0/550 Matter 130/300 Energy 100/100 System Corruption 2% Temperature Cool (0) Movement Core (50) Location -8/Garrison Parts ------- > --- POWER (1) -------- (None) > --- PROPULSION (5) --- (None) > --- UTILITY (3) ------ Hacking Suite Authchip [R/Combat] > --- WEAPON (2) ------- (None) > --- INVENTORY (5) ---- Small Storage Unit Weight Redist. System Advanced Weight Redist. System Advanced Weight Redist. System Remote Datajack Peak State ------------ > --- POWER ------------ Deuterium Engine > --- PROPULSION ------- Improved Hover Unit Airjet Flight Unit Flight Unit Cesium-ion Thruster > --- UTILITY ---------- Small Storage Unit Advanced Weight Redist. System Hacking Suite > --- WEAPON ----------- (None) > --- INVENTORY -------- Wheel Small Storage Unit Weight Redist. System Advanced Weight Redist. System Advanced Weight Redist. System Remote Datajack Remote Datajack [Rating: 21] Favorites ----------- Power Light Ion Engine Engine Light Ion Engine Propulsion Flight Unit Treads Light Treads Wheel Compact Wheel Hover Unit Improved Hover Unit Flight Unit Flight Unit Utility Small Storage Unit Device Advanced Weight Redist. System Storage Small Storage Unit Hackware Hacking Suite Protection Power Shielding Weapon Light Assault Rifle Energy Gun Medium Laser Ballistic Gun Light Assault Rifle Launcher Rocket Launcher Special Weapon Remote Datajack Build | -11 -10 -9 -8 -8 -8 ------- Run | Jun Mat Mat Mat Sto Gar Slots Evolved 4 | . . 2 2 . . Power . | . . . . . . Propulsion 3 | . . 2 1 . . Utility 1 | . . . 1 . . Weapon . | . . . . . . Parts Attached 48 | 6 3 18 11 5 5 Power 4 | 1 1 1 1 . . Engine 4 | 1 1 1 1 . . Core . | . . . . . . Reactor . | . . . . . . Propulsion 17 | 2 . 8 4 2 1 Treads 1 | 1 . . . . . Leg . | . . . . . . Wheel 3 | 1 . . 1 . 1 Hover 2 | . . . 1 1 . Flight 11 | . . 8 2 1 . Utility 18 | 1 2 7 3 3 2 Device 8 | . . 2 3 2 1 Storage 7 | 1 1 5 . . . Processor . | . . . . . . Hackware 2 | . . . . 1 1 Protection 1 | . 1 . . . . Artifact . | . . . . . . Weapon 9 | 2 . 2 3 . 2 Energy Gun 2 | 1 . . 1 . . Energy Cannon . | . . . . . . Ballistic Gun 3 | 1 . 1 1 . . Ballistic Cannon . | . . . . . . Launcher 1 | . . 1 . . . Special Weapon 3 | . . . 1 . 2 Impact Weapon . | . . . . . . Slashing Weapon . | . . . . . . Piercing Weapon . | . . . . . . Special Melee Weapon . | . . . . . . Unidentified Prototypes . | . . . . . . Parts Lost 24 | . 1 8 7 2 6 Power 4 | . 1 1 1 . 1 Propulsion 13 | . . 4 4 2 3 Utility 2 | . . . . . 2 Weapon 5 | . . 3 2 . . Highest Loss Streak 6 | . 1 6 6 2 6 To Critical Strikes . | . . . . . . Average Slot Usage (%) 75 | . 93 81 59 62 63 Engine 9 | . 10 8 6 9 7 Treads 5 | . 14 . . . . Wheel 5 | . 14 . . . 1 Hover 3 | . . . 1 9 5 Flight 13 | . . 40 17 18 15 Device 8 | . . 7 15 15 7 Storage 11 | . 14 11 9 9 9 Protection 4 | . 11 . . . . Energy Gun 6 | . 14 5 2 . . Ballistic Gun 6 | . 14 3 4 . . Naked Turns . | . . . . . . Heaviest Build 27 | 11 27 20 16 14 17 Greatest Support 25 | 16 20 22 25 22 19 Greatest Overweight (x) 2 | . 1 . 2 . 2 Average Overweight (x) . | . . . . . . Largest Inventory Capacity 15 | 8 15 15 8 8 8 Average Capacity 10 | 6 14 9 8 8 7 Most Carried 15 | 7 15 14 8 7 6 Average Carried 8 | 4 12 7 7 7 5 Final Capacity 15 | 8 15 8 8 8 5 Final Carried 15 | 6 15 7 7 7 5 Class Distribution -------------------- 91% | Mutant 5% | Scavenger-Sprinter 3% | Sprinter Dominant Class ---------------- Mutant | -10/Materials Scavenger-Sprinter | -9/Materials Mutant | -8/Materials Mutant | -8/Storage Mutant | -8/Garrison Resources | -11 -10 -9 -8 -8 -8 ----------- Run | Jun Mat Mat Mat Sto Gar Matter Collected 519 | 255 58 50 32 124 . Remotely . | . . . . . . Salvage Created 265 | . 151 67 47 . . Parts 24 | . 13 6 5 . . Haulers Intercepted . | . . . . . . Recyclers Shooed 2 | . 1 1 . . . Parts Field Recycled . | . . . . . . Retrieved Matter . | . . . . . . Parts Self-Destructed . | . . . . . . Prevented . | . . . . . . Kills | -11 -10 -9 -8 -8 -8 ------- Run | Jun Mat Mat Mat Sto Gar Combat Hostiles Destroyed 13 | . 9 1 3 . . Guns 13 | . 9 1 3 . . Classes Destroyed 3 | . 1 2 . . . Builder 1 | . . 1 . . . Swarmer 12 | . 9 . 3 . . Sentry 1 | . . 1 . . . Best Kill Streak 3 | . 3 1 3 . . Combat Bots Only 3 | . 3 1 3 . . Max Kills in Single Turn 1 | . 1 1 1 . . Gunslinging . | . . . . . . Exploded . | . . . . . . Melee . | . . . . . . Uniques/NPCs Destroyed . | . . . . . . Combat | -11 -10 -9 -8 -8 -8 -------- Run | Jun Mat Mat Mat Sto Gar Damage Taken 2055 | . 314 419 646 241 435 Core 702 | . 52 90 197 119 244 Absorbed by Shields . | . . . . . . Redirected to Shielding 11 | . 11 . . . . Core Remaining (%) 85 | 100 79 77 . . . Volleys Fired 53 | . 24 12 16 . 1 Largest 2 | . 2 2 2 . 1 Hottest 89 | . 70 83 89 . 5 Shots Fired 91 | . 48 19 23 . 1 Gun 82 | . 48 13 21 . . Cannon . | . . . . . . Launcher 6 | . . 6 . . . Special 3 | . . . 2 . 1 Kinetic 44 | . 24 6 14 . . Thermal 38 | . 24 7 7 . . Explosive 6 | . . 6 . . . Electromagnetic . | . . . . . . Robot Hit Streak 6 | . 6 5 4 . 3 Robot Miss Streak 5 | . 3 3 5 . . Penetration Max . | . . . . . . Secondary Targets 2 | . 1 . 1 . . Max Gunslinging Chain 1 | . 1 . 1 . . Shots Hit Robots 49 | . 23 11 14 . 1 Core Hits 26 | . 12 10 4 . . Critical Kills . | . . . . . . Critical Parts Destroyed . | . . . . . . Critical Strikes 2 | . 2 . . . . Burn 2 | . 2 . . . . Melee Attacks . | . . . . . . Impact . | . . . . . . Slashing . | . . . . . . Piercing . | . . . . . . Sneak Attacks . | . . . . . . Combat Hostiles . | . . . . . . Follow-up Attacks . | . . . . . . Damage Inflicted 670 | . 245 265 160 . . Guns 487 | . 245 82 160 . . Cannons . | . . . . . . Explosions 183 | . . 183 . . . Melee . | . . . . . . Ramming . | . . . . . . Kinetic 187 | . 87 34 66 . . Thermal 300 | . 158 48 94 . . Explosive 183 | . . 183 . . . Electromagnetic . | . . . . . . Impact . | . . . . . . Slashing . | . . . . . . Piercing . | . . . . . . Highest Corruption 2 | . . . . . 2 Average Corruption 2 | . . . . . 2 Corruption Purged . | . . . . . . Corruption Blocked . | . . . . . . Overload Shots . | . . . . . . Overflow Damage . | . . . . . . Projectiles . | . . . . . . Explosions . | . . . . . . Melee . | . . . . . . Knockbacks . | . . . . . . Impact . | . . . . . . Kinetic . | . . . . . . Secondary . | . . . . . . Self-Inflicted Damage 40 | . . 40 . . . Shots 1 | . . 1 . . . Rammed . | . . . . . . Targets Rammed . | . . . . . . Kicked . | . . . . . . Crushed . | . . . . . . Highest Temperature 179 | . 100 179 166 . 19 Average Temperature 58 | . 30 81 86 . 10 Received Heat Transfer 414 | . . 135 144 90 45 Siege Activations . | . . . . . . Robots Corrupted . | . . . . . . Combat Hostiles . | . . . . . . Parts Fried . | . . . . . . Impact Corruptions . | . . . . . . Robots Melted . | . . . . . . Combat Hostiles . | . . . . . . Parts Melted . | . . . . . . Heat Transferred 962 | . 629 148 185 . . Parts Sabotaged . | . . . . . . Parts Stolen . | . . . . . . Parts Stripped . | . . . . . . Power Chain Reactions . | . . . . . . Missiles Intercepted . | . . . . . . Alert | -11 -10 -9 -8 -8 -8 ------- Run | Jun Mat Mat Mat Sto Gar Peak Influence 215 | . 180 196 215 135 60 Initial 90 | . . 42 82 90 60 Average 85 | . 83 99 127 78 48 Maximum Alert Level 1 | . . . 1 . . Low Security (%) 99 | 100 100 100 96 100 100 Level 1 . | . . . 3 . . Level 2 . | . . . . . . Level 3 . | . . . . . . Level 4 . | . . . . . . Level 5 . | . . . . . . High Security . | . . . . . . Max Security . | . . . . . . Squads Dispatched 2 | . . . . 2 . Investigation 1 | . . . . 1 . Extermination . | . . . . . . Reinforcement 1 | . . . . 1 . Assault . | . . . . . . Garrison . | . . . . . . Intercept . | . . . . . . Searches Triggered . | . . . . . . Construction Impeded . | . . . . . . Haulers Reinforced . | . . . . . . Active Scanning Responses . | . . . . . . Cargo Convoy Interrupts . | . . . . . . Stealth | -11 -10 -9 -8 -8 -8 --------- Run | Jun Mat Mat Mat Sto Gar Distress Signals 1 | . 1 . . . . Communications Jammed . | . . . . . . Distress Signals . | . . . . . . Times Spotted 59 | . 13 9 10 19 8 Peak Tracking Total 16 | . 4 5 7 16 10 Tactical Retreats 10 | . 1 3 2 3 1 Traps | -11 -10 -9 -8 -8 -8 ------- Run | Jun Mat Mat Mat Sto Gar Traps Triggered 3 | . . 1 . 1 1 Indirectly . | . . . . . . Trap Hack Attempts . | . . . . . . Triggered . | . . . . . . Disarmed . | . . . . . . Reprogrammed . | . . . . . . Reused . | . . . . . . Traps Extracted . | . . . . . . Installed . | . . . . . . Triggered . | . . . . . . Machines | -11 -10 -9 -8 -8 -8 ---------- Run | Jun Mat Mat Mat Sto Gar Machines Disabled 1 | . . 1 . . . Max in Single Turn 1 | . . 1 . . . Machines Repaired . | . . . . . . Machines Sabotaged . | . . . . . . Overloaded Fab Kills . | . . . . . . Hacking | -11 -10 -9 -8 -8 -8 --------- Run | Jun Mat Mat Mat Sto Gar Machines Accessed 14 | . 3 2 3 5 1 Terminals 11 | . 2 1 3 4 1 Fabricators . | . . . . . . Repair Stations . | . . . . . . Recycling Units 2 | . 1 1 . . . Scanalyzers . | . . . . . . Garrison Access 1 | . . . . 1 . Total Hacks 21 | . 4 4 6 6 1 Successful 12 | . 4 3 2 3 . Failed 9 | . . 1 4 3 1 Catastrophic 2 | . . . . 1 1 Database Lockouts . | . . . . . . Manual 5 | . 1 4 . . . Terminals 17 | . 3 2 6 5 1 Fabricators . | . . . . . . Repair Stations . | . . . . . . Recycling Units 3 | . 1 2 . . . Scanalyzers . | . . . . . . Garrison Access 1 | . . . . 1 . Terminal Hacks 6 | . 2 . 2 2 . Record 1 | . . . . 1 . Robot Analysis 1 | . . . 1 . . Open Door 1 | . . . . 1 . Locate Traps 1 | . 1 . . . . Registered Components 2 | . 1 . 1 . . Fabricator Hacks . | . . . . . . Repair Station Hacks . | . . . . . . Recycling Unit Hacks 2 | . 1 1 . . . Report Inventory 2 | . 1 1 . . . Scanalyzer . | . . . . . . Garrison Access Hacks 1 | . . . . 1 . Unlock Access 1 | . . . . 1 . Unauthorized Hacks 3 | . 1 2 . . . Terminals 2 | . 1 1 . . . Assimilate 1 | . . 1 . . . Botnet 1 | . 1 . . . . Fabricators . | . . . . . . Repair Stations . | . . . . . . Recycling Units 1 | . . 1 . . . Recyclers 1 | . . 1 . . . Scanalyzers . | . . . . . . Garrison Access . | . . . . . . Data Cores Recovered . | . . . . . . Used . | . . . . . . Hacking Detections 10 | . 2 1 3 3 1 Full Trace Events . | . . . . . . Feedback Events . | . . . . . . Feedback Blocked . | . . . . . . Robot Schematics Acquired . | . . . . . . Robots Built . | . . . . . . Authchips . | . . . . . . Time . | . . . . . . Total Robot Build Rating . | . . . . . . Part Schematics Acquired . | . . . . . . Parts Built . | . . . . . . Authchips . | . . . . . . Time . | . . . . . . Total Part Build Rating . | . . . . . . Parts Repaired . | . . . . . . Time . | . . . . . . Parts Recycled . | . . . . . . Recycled Matter . | . . . . . . Retrieved Matter . | . . . . . . Retrieved Components . | . . . . . . Parts Scanalyzed . | . . . . . . Part Schematics Acquired . | . . . . . . Parts Damaged . | . . . . . . Bothacking | -11 -10 -9 -8 -8 -8 ------------ Run | Jun Mat Mat Mat Sto Gar Used RIF Installer . | . . . . . . Robots Hacked 2 | . . . 1 . 1 Non-combat . | . . . . . . Combat 2 | . . . 1 . 1 Robot Hacks Applied 2 | . . . 1 . 1 parse_system 2 | . . . 1 . 1 Relay Couplers Released . | . . . . . . Fabnet Peak Effective % . | . . . . . . Robots Rewired . | . . . . . . Allies Hacked . | . . . . . . Hacks Repelled . | . . . . . . Allies | -11 -10 -9 -8 -8 -8 -------- Run | Jun Mat Mat Mat Sto Gar Total Allies 1 | . . 1 . . . Largest Group 1 | . . 1 . . . Highest-Rated Group 10 | . . 10 . . . Highest-Rated Ally 10 | . . 10 . . . Total Orders 6 | . . . . 6 . EXPLORE 6 | . . . . 6 . Ally Attacks . | . . . . . . Total Damage . | . . . . . . Kills . | . . . . . . Allies Corrupted . | . . . . . . Allies Melted . | . . . . . . Intel | -11 -10 -9 -8 -8 -8 ------- Run | Jun Mat Mat Mat Sto Gar Robot Analysis Total 1 | . . . 1 . . Derelict Logs Recovered . | . . . . . . Drone Launches 6 | . . . . 6 . Drone Recoveries 2 | . . . . 2 . Exploration | -11 -10 -9 -8 -8 -8 ------------- Run | Jun Mat Mat Mat Sto Gar Turns Passed 1547 | 64 554 162 253 438 76 Spaces Moved 1209 | 50 155 243 381 276 104 Core 19 | 2 . . 16 . 1 Treads 105 | . 105 . . . . Legs . | . . . . . . Wheels 104 | 48 50 . 1 . 5 Hover . | . . . . . . Flight 981 | . . 243 364 276 98 Fastest Speed 29 | 50 100 29 32 32 37 Average Speed 59 | 98 199 30 39 36 40 Slowest Speed 240 | 100 240 32 150 37 150 Overloaded Moves . | . . . . . . Propulsion Burnouts . | . . . . . . Robots Hopped 11 | . . . 3 8 . Cave-ins Triggered . | . . . . . . Exploration Rate (%) 30 | 4 26 25 28 68 32 Regions Visited 5 Branch Regions 1 Pre-discovered Areas . | . . . . . . Known Exits Taken 1 | . . . . 1 . Unknown Exits Taken 4 | 1 1 1 1 . . Scrap Searched . | . . . . . . Spaces Dug . | . . . . . . Terrain Destroyed 50 | . . 50 . . . Melee . | . . . . . . Projectile . | . . . . . . AOE 50 | . . 50 . . . Terrain Rammed . | . . . . . . Walls Destroyed . | . . . . . . Machines Disabled . | . . . . . . Actions | -11 -10 -9 -8 -8 -8 --------- Run | Jun Mat Mat Mat Sto Gar Total 1932 | 62 359 310 461 603 137 Wait 566 | . 164 24 43 328 7 Move 1186 | 49 154 242 374 263 104 Hop 8 | . . . 3 5 . Pick Up 33 | 7 11 6 7 . 2 Fast Attach 24 | 5 2 7 5 5 . Attach 18 | 1 1 8 4 . 4 Detach 3 | . 1 1 1 . . Swap 6 | . . 3 2 . 1 Drop 17 | . 2 7 6 2 . Fire 53 | . 24 12 16 . 1 Melee . | . . . . . . Ram . | . . . . . . Kick . | . . . . . . Crush . | . . . . . . Escape Stasis 18 | . . . . . 18 Rewire . | . . . . . . Trap . | . . . . . . Miscellaneous . | . . . . . . Route ------- -11/Junkyard -10/Materials -9/Materials -8/Materials -8/Storage -8/Garrison History --------- Turn | Location | Event 15 | -11/Junkyard | Discovered new exit (range 15) 65 | -11/Junkyard | Entered Materials 302 | -10/Materials | Build established: Mutant 459 | -10/Materials | Discovered new exit (range 16) 619 | -10/Materials | Entered another Materials area 619 | -9/Materials | Evolved 2 slots: Propulsion x2 764 | -9/Materials | Lost 6 parts (1p3n2w) 780 | -9/Materials | Discovered new exit (range 6) 781 | -9/Materials | Entered another Materials area 781 | -8/Materials | Evolved 2 slots: Propulsion x1, Utility x1 864 | -8/Materials | Discovered new exit (range 10) 964 | -8/Materials | Lost 6 parts (1p3n2w) 1034 | -8/Materials | Entered Storage 1466 | -8/Storage | Core integrity fell below 50% 1472 | -8/Storage | Identified exit to Garrison 1472 | -8/Storage | Entered Garrison 1480 | -8/Garrison | Triggered checkpoint 1518 | -8/Garrison | Triggered checkpoint 1519 | -8/Garrison | Triggered checkpoint 1540 | -8/Garrison | Core integrity fell below 20% 1548 | -8/Garrison | Destroyed by C-17 Slicer with Blade Saw Last Messages --------------- 01518_ Airjet destroyed. 01518_ Adv. Weight Redist. System destroyed. 01518_ System corrupted by crushing effect (+2). 01518_ Knocked back. 01520_ C-30 ARC bursts open, deploying its payload. 01520_ G-47 Trooper unfolds itself. 01520_ Critical hit (Burn: +37). 01522_ Remote Datajack severed. 01529_ Flight Unit destroyed. 01529_ Knocked back. 01534_ Acquired Authchip [R/Combat]. 01535_ Wheel severed. 01536_ Deuterium Engine destroyed. 01537_ Jacked C-17 Slicer... >>parse_system Reading system data... 01539_ Remote Datajack severed. 01540_ Acquired Remote Datajack. 01544_ Flight Unit destroyed. 01545_ Sml. Storage Unit destroyed. Map ----- +----------------------------------------------------+ | #""""## ##??????????????????????????????????????? | | #??????????????????????????????????????? | | #??????????????????????????????????????? | | #??????????????????????????????????????? | | # ## #??????????????????????????????????????? | | # ## #??????????????????????????????????????? | | "??????????????????????????????????????? | | "??????????????????????????????????????? | | "??????????????????????????????????????? | | "??????????????????????????????????????? | | # ## #??????????????????????????????????????? | | # ## ###########????????????????????????????? | | #????????????????????????????? | | | #????????????????????????????? | | ######## #????????????????????????????? | | # #### #??????# #????????????????????????????? | | # #??# #??????# #????????????????????????????? | | ######??" #??????# #############????????????????? | | ????????T #??????# ##""""""""""#????????????????? | | ????????""#??????# ##"!!!!!!"""#????????????????? | | ????????###??????# ## ""#????????????????? | | ?????????????????# ## !"#????????????????? | | ?????????????????# + !"#????????????????? | | ?????????????????# + !"#????????????????? | | ?????????????????# ## c !"#????????????????? | | ?????????????????# ## c@ ""#????????????????? | | ?????????????????# ##"!c!!!!"""#????????????????? | | ?????????????????# ##""""""""""#????????????????? | | ?????????????????# #############????????????????? | | ##???????????????# #????????????????????????????? | | "#???????????????# #????????????????????????????? | | ##???????????????# #????????????????????????????? | | #???????????????# ?????????????????????????????? | | ##??????????????? ?????????????????????????????? | | ????????????????? ?????????????????????????????? | | ?????????????????###?????????????????????????????? | | ?????????????????????????????????????????????????? | | ?????????????????????????????????????????????????? | | ?????????????????????????????????????????????????? | | ?????????????????????????????????????????????????? | | ?????????????????????????????????????????????????? | | ?????????????????????????????????????????????????? | | ?????????????????????????????????????????????????? | | ?????????????????????????????????????????????????? | | ?????????????????????????????????????????????????? | | ?????????????????????????????????????????????????? | | ?????????????????????????????????????????????????? | | ?????????????????????????????????????????????????? | | ?????????????????????????????????????????????????? | | ?????????????????????????????????????????????????? | +----------------------------------------------------+ Best States ------------- Heat Dissipation 31 Coolant Potential 50 Energy Generation 14 Energy Capacity 275 Matter Stores 300 Matter Capacity 300 Sight Range 16 Terrain Scan Density 10 Additional Mass Support 9 Power Shielding 33 Evasion (%) 63 Recoil Reduction 1 Offensive Hacking 10 Authchip Count 1 Item Schematics ----------------- None Robot Schematics ------------------ None Fabricated ------------ Nothing Alien Tech Used ----------------- None Achievements -------------- None Challenges ------------ None Game ------ Seed DisruptorCentriumInjector Manual? 0 Play Time 00:23:44 Cumulative 17.1 hours Start 2023.03.15 @ 20:42:40 End 2023.03.15 @ 21:05:02 Sessions 1 Manual Loads 0 Difficulty Rogue Special Mode None Game No. 27 Rogue 27 Adventurer 0 Explorer 0 Win Type - Total 0 Types 0/0/0/0/0/0/0/0/0 Lore% 13 Gallery% 26 Achievement% 37 Wizard Run 0 Options --------- ASCII 0 Keyboard 0 Movement Mouse Keybinds 0 Fullscreen 1 Font 18/X11 Map View 76x50 Tactical HUD 1 Map Filters NONE Filters NONE Steam 1 RUN: f2d85744-859b-4a38-989f-4532979634d4